[Event "Betsys MČR v online bleskovém šachu 2021"]
[Site "Chess.com"]
[Date "2021.04.17"]
[Round "9"]
[White "MartinHollan"]
[Black "jachym08"]
[Result "1-0"]
[WhiteElo "2607"]
[BlackElo "2255"]
[TimeControl "180+1"]
[EndTime "10:30:05 PDT"]
[Termination "Uživatel MartinHollan zvítězil po vzdání soupeře"]

1. e4 {[%clk 0:03:00.9]} 1... c5 {[%clk 0:02:59.4]} 2. Nf3 {[%clk 0:03:00.5]}
2... d6 {[%clk 0:02:59]} 3. Bb5+ {[%clk 0:03:00.1]} 3... Nd7 {[%clk 0:02:58.3]}
4. c4 {[%clk 0:02:59.7]} 4... Nf6 {[%clk 0:02:56.6]} 5. O-O {[%clk 0:02:59.8]}
5... a6 {[%clk 0:02:52.7]} 6. Ba4 {[%clk 0:02:59.5]} 6... e6 {[%clk 0:02:48.9]}
7. Nc3 {[%clk 0:02:58.2]} 7... Be7 {[%clk 0:02:47.5]} 8. d4 {[%clk 0:02:49.4]}
8... cxd4 {[%clk 0:02:46.7]} 9. Qxd4 {[%clk 0:02:49.2]} 9... O-O {[%clk
0:02:43.9]} 10. Rd1 {[%clk 0:02:48.5]} 10... Qc7 {[%clk 0:02:41.7]} 11. h3
{[%clk 0:02:43.9]} 11... Nc5 {[%clk 0:02:38.6]} 12. Bc2 {[%clk 0:02:43.1]} 12...
b6 {[%clk 0:02:25.2]} 13. b3 {[%clk 0:02:40.2]} 13... Bb7 {[%clk 0:02:24.3]} 14.
Bb2 {[%clk 0:02:40.2]} 14... e5 {[%clk 0:02:17.9]} 15. Qe3 {[%clk 0:02:37.5]}
15... Ne6 {[%clk 0:02:17.4]} 16. Nd5 {[%clk 0:02:36.8]} 16... Bxd5 {[%clk
0:02:09.3]} 17. exd5 {[%clk 0:02:32.6]} 17... Nf4 {[%clk 0:02:05.6]} 18. Re1
{[%clk 0:02:25.4]} 18... N4xd5 {[%clk 0:01:55.9]} 19. Qd2 {[%clk 0:02:11.7]}
19... Nf4 {[%clk 0:01:46.2]} 20. Nxe5 {[%clk 0:02:11.8]} 20... dxe5 {[%clk
0:01:39.2]} 21. Bxe5 {[%clk 0:02:11.1]} 21... Nxh3+ {[%clk 0:01:38.5]} 22. gxh3
{[%clk 0:02:08.8]} 22... Qc8 {[%clk 0:01:25.9]} 23. Qd3 {[%clk 0:02:04.6]} 23...
g6 {[%clk 0:01:20.6]} 24. Bb2 {[%clk 0:02:00]} 24... Qc7 {[%clk 0:01:09.4]} 25.
Qf3 {[%clk 0:01:56.6]} 25... Nh5 {[%clk 0:01:05.8]} 26. Be5 {[%clk 0:01:35.3]}
26... Bd6 {[%clk 0:01:01.4]} 27. Bb2 {[%clk 0:01:34.5]} 27... Rae8 {[%clk
0:00:57.8]} 28. Rad1 {[%clk 0:01:31.9]} 28... Be5 {[%clk 0:00:52.6]} 29. Bc1
{[%clk 0:01:30.8]} 29... Bh2+ {[%clk 0:00:50.3]} 30. Kh1 {[%clk 0:01:29.1]}
30... Bf4 {[%clk 0:00:50.1]} 31. Ba3 {[%clk 0:01:25.1]} 31... Rxe1+ {[%clk
0:00:47.6]} 32. Rxe1 {[%clk 0:01:24.9]} 32... Rd8 {[%clk 0:00:46.4]} 33. Re7
{[%clk 0:01:18.7]} 33... Rd7 {[%clk 0:00:36.5]} 34. Re8+ {[%clk 0:01:16.2]}
34... Kg7 {[%clk 0:00:35.9]} 35. Bf8+ {[%clk 0:01:02.5]} 35... Kf6 {[%clk
0:00:33.8]} 36. Bh6 {[%clk 0:00:49.2]} 36... Qb7 {[%clk 0:00:30.4]} 37. Re4
{[%clk 0:00:46.3]} 37... g5 {[%clk 0:00:24.1]} 38. Qxh5 {[%clk 0:00:43.9]} 38...
Rd1+ {[%clk 0:00:20.6]} 39. Qxd1 {[%clk 0:00:43.5]} 1-0

[Event "Betsys MČR v online bleskovém šachu 2021"]
[Site "Chess.com"]
[Date "2021.04.17"]
[Round "9"]
[White "Alesbar"]
[Black "sachmaty8"]
[Result "0-1"]
[WhiteElo "1610"]
[BlackElo "1827"]
[TimeControl "180+1"]
[EndTime "10:30:05 PDT"]
[Termination "Uživatel sachmaty8 zvítězil po vzdání soupeře"]

1. Nf3 {[%clk 0:02:59.7]} 1... Nf6 {[%clk 0:02:57.3]} 2. g3 {[%clk 0:02:59.6]}
2... g6 {[%clk 0:02:55.6]} 3. Bg2 {[%clk 0:02:59.5]} 3... Bg7 {[%clk 0:02:56.2]}
4. O-O {[%clk 0:02:59.2]} 4... c5 {[%clk 0:02:51.3]} 5. c4 {[%clk 0:02:57.5]}
5... O-O {[%clk 0:02:50.7]} 6. Nc3 {[%clk 0:02:57.1]} 6... Nc6 {[%clk
0:02:50.2]} 7. e3 {[%clk 0:02:57]} 7... d5 {[%clk 0:02:45.6]} 8. cxd5 {[%clk
0:02:53.8]} 8... Nxd5 {[%clk 0:02:45.3]} 9. a3 {[%clk 0:02:41.1]} 9... Nxc3
{[%clk 0:02:25.7]} 10. dxc3 {[%clk 0:02:33.8]} 10... e5 {[%clk 0:02:22.3]} 11.
Qb3 {[%clk 0:02:19.7]} 11... Qc7 {[%clk 0:02:17.8]} 12. e4 {[%clk 0:02:10.8]}
12... Be6 {[%clk 0:02:16.6]} 13. Qc2 {[%clk 0:02:09.9]} 13... f5 {[%clk
0:02:05.7]} 14. Ng5 {[%clk 0:02:02.1]} 14... Bc4 {[%clk 0:01:54.8]} 15. Re1
{[%clk 0:01:49]} 15... h6 {[%clk 0:01:50.8]} 16. b3 {[%clk 0:01:25.9]} 16...
hxg5 {[%clk 0:01:40.6]} 17. bxc4 {[%clk 0:01:25.2]} 17... f4 {[%clk 0:01:40.3]}
18. a4 {[%clk 0:01:05.9]} 18... Rad8 {[%clk 0:01:38.2]} 19. Ba3 {[%clk
0:01:03.2]} 19... b6 {[%clk 0:01:37.3]} 20. Rad1 {[%clk 0:01:02.4]} 20... Qe7
{[%clk 0:01:31.1]} 21. Rxd8 {[%clk 0:00:57.5]} 21... Rxd8 {[%clk 0:01:30.2]} 22.
Rd1 {[%clk 0:00:56.8]} 22... Na5 {[%clk 0:01:27.4]} 23. Bf1 {[%clk 0:00:52.1]}
23... Rd7 {[%clk 0:01:18.8]} 24. Rd5 {[%clk 0:00:29.9]} 24... Rd8 {[%clk
0:01:01.6]} 25. Qd3 {[%clk 0:00:28.6]} 25... Rf8 {[%clk 0:01:01.3]} 26. Rd7
{[%clk 0:00:26]} 26... Qf6 {[%clk 0:01:01.3]} 27. Qd5+ {[%clk 0:00:23.6]} 27...
Kh8 {[%clk 0:00:59.2]} 28. Rd6 {[%clk 0:00:20.3]} 28... Qe7 {[%clk 0:00:52.7]}
29. Rxg6 {[%clk 0:00:17]} 29... fxg3 {[%clk 0:00:45.9]} 30. hxg3 {[%clk
0:00:15.6]} 30... Kh7 {[%clk 0:00:43.6]} 31. Re6 {[%clk 0:00:13.7]} 31... Qf7
{[%clk 0:00:42.3]} 32. Rd6 {[%clk 0:00:11.9]} 32... Qxf2+ {[%clk 0:00:40.9]} 33.
Kh1 {[%clk 0:00:08.8]} 33... Qxf1+ {[%clk 0:00:40.6]} 0-1

[Event "Betsys MČR v online bleskovém šachu 2021"]
[Site "Chess.com"]
[Date "2021.04.17"]
[Round "9"]
[White "Kamilotka"]
[Black "valid88"]
[Result "0-1"]
[WhiteElo "1599"]
[BlackElo "1364"]
[TimeControl "180+1"]
[EndTime "10:30:05 PDT"]
[Termination "Uživatel valid88 zvítězil matem"]

1. e4 {[%clk 0:03:00.9]} 1... c6 {[%clk 0:01:17.7]} 2. d4 {[%clk 0:02:59.1]}
2... d5 {[%clk 0:01:18.1]} 3. exd5 {[%clk 0:02:59.2]} 3... cxd5 {[%clk 0:01:18]}
4. c4 {[%clk 0:02:59.3]} 4... dxc4 {[%clk 0:01:16.1]} 5. Bxc4 {[%clk 0:02:59.2]}
5... Nf6 {[%clk 0:01:12.8]} 6. Qb3 {[%clk 0:02:56.2]} 6... e6 {[%clk 0:01:09.7]}
7. Nf3 {[%clk 0:02:53.9]} 7... Be7 {[%clk 0:01:09.6]} 8. O-O {[%clk 0:02:52.5]}
8... O-O {[%clk 0:01:10.1]} 9. Be3 {[%clk 0:02:52.2]} 9... Nc6 {[%clk
0:01:09.1]} 10. Nc3 {[%clk 0:02:47.9]} 10... Na5 {[%clk 0:01:08.9]} 11. Qa4
{[%clk 0:02:39.5]} 11... Nxc4 {[%clk 0:01:06.6]} 12. Qxc4 {[%clk 0:02:38.8]}
12... Bd7 {[%clk 0:01:06.7]} 13. Rfd1 {[%clk 0:02:33.8]} 13... Rc8 {[%clk
0:01:06.4]} 14. Qe2 {[%clk 0:02:31.7]} 14... a6 {[%clk 0:01:05.9]} 15. h3 {[%clk
0:02:31.3]} 15... b5 {[%clk 0:01:00]} 16. a3 {[%clk 0:02:30.3]} 16... a5 {[%clk
0:00:57.4]} 17. Ne5 {[%clk 0:02:16.4]} 17... b4 {[%clk 0:00:55.3]} 18. Nxd7
{[%clk 0:02:06.2]} 18... Qxd7 {[%clk 0:00:53.9]} 19. axb4 {[%clk 0:02:05.4]}
19... axb4 {[%clk 0:00:53.1]} 20. Nb1 {[%clk 0:02:04.6]} 20... Nd5 {[%clk
0:00:52.5]} 21. Nd2 {[%clk 0:01:59.2]} 21... Rc2 {[%clk 0:00:51.7]} 22. Qd3
{[%clk 0:01:52.8]} 22... Rfc8 {[%clk 0:00:46.7]} 23. Nf3 {[%clk 0:01:47.5]}
23... h6 {[%clk 0:00:42.5]} 24. Ne5 {[%clk 0:01:45.8]} 24... Qb7 {[%clk
0:00:37.8]} 25. Rdc1 {[%clk 0:01:42.5]} 25... b3 {[%clk 0:00:31.5]} 26. Rcb1
{[%clk 0:01:28.4]} 26... Nb4 {[%clk 0:00:28.2]} 27. Qd1 {[%clk 0:01:17.2]} 27...
Na2 {[%clk 0:00:20.4]} 28. Nd3 {[%clk 0:01:09.3]} 28... Bg5 {[%clk 0:00:19.1]}
29. f4 {[%clk 0:01:07.2]} 29... Bf6 {[%clk 0:00:18.2]} 30. g4 {[%clk 0:01:01.7]}
30... Qb6 {[%clk 0:00:17.1]} 31. Ne5 {[%clk 0:00:53.8]} 31... Be7 {[%clk
0:00:15.5]} 32. f5 {[%clk 0:00:45]} 32... exf5 {[%clk 0:00:12.9]} 33. gxf5
{[%clk 0:00:44.2]} 33... Qb7 {[%clk 0:00:12.1]} 34. Qh5 {[%clk 0:00:37.1]} 34...
Qg2# {[%clk 0:00:11.5]} 0-1

[Event "Betsys MČR v online bleskovém šachu 2021"]
[Site "Chess.com"]
[Date "2021.04.17"]
[Round "9"]
[White "Patriktesko"]
[Black "p_kana"]
[Result "1-0"]
[WhiteElo "2048"]
[BlackElo "1791"]
[TimeControl "180+1"]
[EndTime "10:30:07 PDT"]
[Termination "Uživatel Patriktesko zvítězil na čas"]

1. d4 {[%clk 0:03:00.9]} 1... Nf6 {[%clk 0:02:58.1]} 2. Nf3 {[%clk 0:03:01.3]}
2... d5 {[%clk 0:02:56.9]} 3. Bg5 {[%clk 0:03:01.5]} 3... Ne4 {[%clk 0:02:55.8]}
4. Bh4 {[%clk 0:03:00.8]} 4... c5 {[%clk 0:02:55.2]} 5. c3 {[%clk 0:03:00.8]}
5... Qb6 {[%clk 0:02:53.6]} 6. Qc2 {[%clk 0:02:58.1]} 6... Bf5 {[%clk
0:02:51.2]} 7. Qc1 {[%clk 0:02:56.6]} 7... e6 {[%clk 0:02:46.1]} 8. e3 {[%clk
0:02:55.7]} 8... Nc6 {[%clk 0:02:43.9]} 9. Nbd2 {[%clk 0:02:55.8]} 9... cxd4
{[%clk 0:02:43]} 10. exd4 {[%clk 0:02:52.5]} 10... Rc8 {[%clk 0:02:39.4]} 11.
Nxe4 {[%clk 0:02:52.3]} 11... Bxe4 {[%clk 0:02:38.1]} 12. Qd2 {[%clk 0:02:52.2]}
12... Bxf3 {[%clk 0:02:35.9]} 13. gxf3 {[%clk 0:02:53.1]} 13... Be7 {[%clk
0:02:27.5]} 14. Bg3 {[%clk 0:02:52.4]} 14... Na5 {[%clk 0:02:13.5]} 15. Bd3
{[%clk 0:02:49.1]} 15... Nc4 {[%clk 0:02:08.7]} 16. Bxc4 {[%clk 0:02:49.1]}
16... Rxc4 {[%clk 0:02:07.6]} 17. O-O {[%clk 0:02:50]} 17... O-O {[%clk
0:01:56.2]} 18. Rae1 {[%clk 0:02:42.3]} 18... Bf6 {[%clk 0:01:43]} 19. a3 {[%clk
0:02:31.7]} 19... Qd8 {[%clk 0:01:38.9]} 20. Kg2 {[%clk 0:02:30.1]} 20... Qd7
{[%clk 0:01:32.3]} 21. Be5 {[%clk 0:02:26.9]} 21... Bxe5 {[%clk 0:01:26.5]} 22.
Rxe5 {[%clk 0:02:27.8]} 22... Qe7 {[%clk 0:01:25.1]} 23. Rg1 {[%clk 0:02:24.9]}
23... Qf6 {[%clk 0:01:18.2]} 24. Qe3 {[%clk 0:02:20]} 24... b5 {[%clk
0:01:10.6]} 25. Kh1 {[%clk 0:02:17.4]} 25... a5 {[%clk 0:01:01.2]} 26. Rg4
{[%clk 0:02:09.9]} 26... b4 {[%clk 0:00:53.4]} 27. axb4 {[%clk 0:02:09.7]} 27...
axb4 {[%clk 0:00:52.8]} 28. Rf4 {[%clk 0:02:08.4]} 28... Qg6 {[%clk 0:00:41.8]}
29. Rg4 {[%clk 0:02:05.6]} 29... Qb1+ {[%clk 0:00:35.6]} 30. Kg2 {[%clk
0:02:05.1]} 30... bxc3 {[%clk 0:00:34.6]} 31. bxc3 {[%clk 0:02:04.7]} 31... g6
{[%clk 0:00:18.1]} 32. h4 {[%clk 0:02:01]} 32... Rc6 {[%clk 0:00:16]} 33. h5
{[%clk 0:01:59.9]} 33... Rfc8 {[%clk 0:00:14.7]} 34. h6 {[%clk 0:01:57.1]} 34...
Rxc3 {[%clk 0:00:11.9]} 35. Qf4 {[%clk 0:01:39.3]} 35... Rc1 {[%clk 0:00:10.8]}
36. Rg3 {[%clk 0:01:32.4]} 36... Rg1+ {[%clk 0:00:07.1]} 37. Kh3 {[%clk
0:01:31.9]} 37... Rxg3+ {[%clk 0:00:03.2]} 38. Qxg3 {[%clk 0:01:19.7]} 38... Qb4
{[%clk 0:00:02.5]} 39. Qf4 {[%clk 0:01:16.4]} 39... Qe7 {[%clk 0:00:02.9]} 40.
Kg3 {[%clk 0:01:14]} 40... Rd8 {[%clk 0:00:02.3]} 41. Kg2 {[%clk 0:01:06.9]}
41... Qf8 {[%clk 0:00:02.2]} 42. Qf6 {[%clk 0:01:01.7]} 1-0

[Event "Betsys MČR v online bleskovém šachu 2021"]
[Site "Chess.com"]
[Date "2021.04.17"]
[Round "9"]
[White "Adam20032007"]
[Black "Classemence"]
[Result "1-0"]
[WhiteElo "1826"]
[BlackElo "1895"]
[TimeControl "180+1"]
[EndTime "10:30:08 PDT"]
[Termination "Uživatel Adam20032007 zvítězil matem"]

1. d4 {[%clk 0:02:58.1]} 1... Nf6 {[%clk 0:02:59.6]} 2. Nf3 {[%clk 0:02:58.1]}
2... c5 {[%clk 0:02:57.2]} 3. c3 {[%clk 0:02:57.5]} 3... d5 {[%clk 0:02:57.2]}
4. e3 {[%clk 0:02:56.9]} 4... Nc6 {[%clk 0:02:57.4]} 5. Bd3 {[%clk 0:02:57]}
5... Bg4 {[%clk 0:02:57.1]} 6. O-O {[%clk 0:02:51.9]} 6... e6 {[%clk 0:02:57.4]}
7. Nbd2 {[%clk 0:02:50.9]} 7... Be7 {[%clk 0:02:56.9]} 8. dxc5 {[%clk 0:02:50]}
8... Bxc5 {[%clk 0:02:57.1]} 9. b4 {[%clk 0:02:50.9]} 9... Bd6 {[%clk
0:02:53.5]} 10. a3 {[%clk 0:02:50.2]} 10... O-O {[%clk 0:02:52.8]} 11. Bb2
{[%clk 0:02:49.9]} 11... e5 {[%clk 0:02:45.3]} 12. e4 {[%clk 0:02:47.6]} 12...
d4 {[%clk 0:02:45.4]} 13. cxd4 {[%clk 0:02:46.8]} 13... Nxd4 {[%clk 0:02:43.3]}
14. Rc1 {[%clk 0:02:37]} 14... Nh5 {[%clk 0:02:35.1]} 15. h3 {[%clk 0:02:34.3]}
15... Bxf3 {[%clk 0:02:33.6]} 16. Nxf3 {[%clk 0:02:34.2]} 16... Nxf3+ {[%clk
0:02:33.5]} 17. Qxf3 {[%clk 0:02:33.8]} 17... Nf4 {[%clk 0:02:34.4]} 18. Bb1
{[%clk 0:02:25.1]} 18... Rc8 {[%clk 0:02:32.4]} 19. Rfd1 {[%clk 0:02:19.8]}
19... Qe7 {[%clk 0:02:31]} 20. Kh2 {[%clk 0:01:59.9]} 20... h6 {[%clk
0:02:21.9]} 21. g3 {[%clk 0:01:58.3]} 21... Ne6 {[%clk 0:02:22.1]} 22. Ba2
{[%clk 0:01:53]} 22... a5 {[%clk 0:02:04.7]} 23. bxa5 {[%clk 0:01:49.8]} 23...
Ng5 {[%clk 0:01:56.8]} 24. Qd3 {[%clk 0:01:46.2]} 24... Rcd8 {[%clk 0:01:45.3]}
25. Qe3 {[%clk 0:01:28.4]} 25... Ne6 {[%clk 0:01:35]} 26. Bxe6 {[%clk
0:01:26.2]} 26... Qxe6 {[%clk 0:01:35.9]} 27. Rd5 {[%clk 0:01:24.1]} 27... Bb8
{[%clk 0:01:23.8]} 28. Rcd1 {[%clk 0:01:22.6]} 28... Rxd5 {[%clk 0:01:21.8]} 29.
Rxd5 {[%clk 0:01:22.1]} 29... Qc6 {[%clk 0:01:16.4]} 30. Qc3 {[%clk 0:01:17.5]}
30... Qf6 {[%clk 0:01:12]} 31. Qc5 {[%clk 0:01:10.3]} 31... Re8 {[%clk
0:00:56.3]} 32. f4 {[%clk 0:01:07.5]} 32... Qg6 {[%clk 0:00:54.2]} 33. Bxe5
{[%clk 0:01:01.8]} 33... Qxe4 {[%clk 0:00:48.2]} 34. Rd2 {[%clk 0:00:23.9]}
34... Bxe5 {[%clk 0:00:45.4]} 35. fxe5 {[%clk 0:00:23.8]} 35... Rxe5 {[%clk
0:00:46.1]} 36. Qc2 {[%clk 0:00:18.8]} 36... Rxa5 {[%clk 0:00:40]} 37. Qxe4
{[%clk 0:00:17.9]} 37... Rxa3 {[%clk 0:00:31]} 38. Rd8# {[%clk 0:00:17.5]} 1-0

[Event "Betsys MČR v online bleskovém šachu 2021"]
[Site "Chess.com"]
[Date "2021.04.17"]
[Round "9"]
[White "Mimochodem"]
[Black "pepca"]
[Result "1-0"]
[WhiteElo "1796"]
[BlackElo "1527"]
[TimeControl "180+1"]
[EndTime "10:30:09 PDT"]
[Termination "Uživatel Mimochodem zvítězil na čas"]

1. e4 {[%clk 0:03:00.9]} 1... e5 {[%clk 0:02:59.4]} 2. Nf3 {[%clk 0:03:00.7]}
2... Nc6 {[%clk 0:02:58.8]} 3. Nc3 {[%clk 0:03:01.1]} 3... Nf6 {[%clk
0:02:57.6]} 4. Bc4 {[%clk 0:03:01.4]} 4... Nxe4 {[%clk 0:02:56.1]} 5. Bxf7+
{[%clk 0:03:00.2]} 5... Kxf7 {[%clk 0:02:55.6]} 6. Nxe4 {[%clk 0:03:00.1]} 6...
d5 {[%clk 0:02:55.6]} 7. Ng3 {[%clk 0:02:59.1]} 7... Bg4 {[%clk 0:02:52.8]} 8.
h3 {[%clk 0:02:56.2]} 8... Be6 {[%clk 0:02:47.8]} 9. O-O {[%clk 0:02:49.2]} 9...
Bd6 {[%clk 0:02:45.2]} 10. d3 {[%clk 0:02:48.8]} 10... Rf8 {[%clk 0:02:43.4]}
11. Bg5 {[%clk 0:02:45.8]} 11... Ne7 {[%clk 0:02:39.9]} 12. Re1 {[%clk
0:02:43.7]} 12... Kg8 {[%clk 0:02:35.3]} 13. Bxe7 {[%clk 0:02:43.1]} 13... Qxe7
{[%clk 0:02:33.8]} 14. Nxe5 {[%clk 0:02:43.5]} 14... Bxe5 {[%clk 0:02:31]} 15.
Rxe5 {[%clk 0:02:43.5]} 15... Qf6 {[%clk 0:02:30.5]} 16. Re2 {[%clk 0:02:36.2]}
16... Bd7 {[%clk 0:02:27.2]} 17. Qd2 {[%clk 0:02:33.8]} 17... Qxb2 {[%clk
0:02:25.7]} 18. Rae1 {[%clk 0:02:28.1]} 18... Qxa2 {[%clk 0:02:16.5]} 19. Qg5
{[%clk 0:02:28.2]} 19... Rad8 {[%clk 0:00:24.2]} 20. Re7 {[%clk 0:02:14.9]}
20... Qb2 {[%clk 0:00:17.7]} 21. Qxd5+ {[%clk 0:02:04.7]} 21... Kh8 {[%clk
0:00:15.2]} 22. Rxd7 {[%clk 0:02:01.4]} 22... Rxd7 {[%clk 0:00:14.2]} 23. Qxd7
{[%clk 0:01:59.1]} 23... Qxc2 {[%clk 0:00:14.5]} 24. Re8 {[%clk 0:01:53.4]}
24... Qxf2+ {[%clk 0:00:12.6]} 25. Kh2 {[%clk 0:01:50.5]} 25... a5 {[%clk
0:00:09.8]} 26. Rxf8+ {[%clk 0:01:48.4]} 26... Qxf8 {[%clk 0:00:08.1]} 27. Qxc7
{[%clk 0:01:47.6]} 27... a4 {[%clk 0:00:08.1]} 28. Qxb7 {[%clk 0:01:44.7]} 28...
a3 {[%clk 0:00:08.6]} 29. Qb3 {[%clk 0:01:43.7]} 29... Qa8 {[%clk 0:00:06.6]}
30. Qa2 {[%clk 0:01:41.4]} 30... h6 {[%clk 0:00:05.7]} 31. Ne4 {[%clk
0:01:41.7]} 31... Qb8+ {[%clk 0:00:03.8]} 32. Kg1 {[%clk 0:01:31.1]} 32... Qb2
{[%clk 0:00:04.1]} 33. Qxb2 {[%clk 0:01:29.6]} 33... axb2 {[%clk 0:00:03.9]} 34.
Nc3 {[%clk 0:01:29.9]} 34... g5 {[%clk 0:00:04.1]} 35. Kf1 {[%clk 0:01:25.4]}
35... Kg7 {[%clk 0:00:04.6]} 36. Ke1 {[%clk 0:01:25.8]} 36... Kf6 {[%clk
0:00:05.2]} 37. Kd1 {[%clk 0:01:26.4]} 37... Ke5 {[%clk 0:00:05.8]} 38. Kc2
{[%clk 0:01:27]} 38... Kd4 {[%clk 0:00:06.4]} 39. Nd1 {[%clk 0:01:22.7]} 39...
Ke5 {[%clk 0:00:03.3]} 40. Nxb2 {[%clk 0:01:17.2]} 40... Kf4 {[%clk 0:00:03.8]}
41. Nd1 {[%clk 0:01:17.5]} 41... Kg3 {[%clk 0:00:04.2]} 42. d4 {[%clk
0:01:17.9]} 42... Kxg2 {[%clk 0:00:02]} 43. d5 {[%clk 0:01:18.1]} 43... Kxh3
{[%clk 0:00:02.2]} 44. d6 {[%clk 0:01:18.4]} 44... g4 {[%clk 0:00:02.8]} 45. d7
{[%clk 0:01:15.5]} 45... g3 {[%clk 0:00:03.3]} 46. Ne3 {[%clk 0:01:15.6]} 46...
g2 {[%clk 0:00:03.8]} 47. Nxg2 {[%clk 0:01:15.7]} 47... Kxg2 {[%clk 0:00:04]}
48. d8=Q {[%clk 0:01:15.9]} 48... h5 {[%clk 0:00:04.1]} 49. Qh4 {[%clk
0:01:15.7]} 1-0

[Event "Betsys MČR v online bleskovém šachu 2021"]
[Site "Chess.com"]
[Date "2021.04.17"]
[Round "9"]
[White "Rubinus"]
[Black "SayQueen"]
[Result "0-1"]
[WhiteElo "2158"]
[BlackElo "2017"]
[TimeControl "180+1"]
[EndTime "10:30:10 PDT"]
[Termination "Uživatel SayQueen zvítězil matem"]

1. e4 {[%clk 0:02:56.7]} 1... e5 {[%clk 0:02:59.4]} 2. f4 {[%clk 0:02:55.2]}
2... exf4 {[%clk 0:02:54.6]} 3. Nc3 {[%clk 0:02:52.3]} 3... d5 {[%clk
0:02:53.4]} 4. Nxd5 {[%clk 0:02:51.2]} 4... Qh4+ {[%clk 0:02:35.9]} 5. Ke2
{[%clk 0:02:50.3]} 5... Bd6 {[%clk 0:02:25]} 6. Nf3 {[%clk 0:02:50]} 6... Bg4
{[%clk 0:02:17.7]} 7. d4 {[%clk 0:02:43.8]} 7... c6 {[%clk 0:01:44]} 8. Nxf4
{[%clk 0:02:17.4]} 8... Bxf3+ {[%clk 0:01:39.3]} 9. Kxf3 {[%clk 0:02:02.1]} 9...
Nf6 {[%clk 0:01:32.9]} 10. Bd3 {[%clk 0:01:39.3]} 10... Qg4+ {[%clk 0:01:19.2]}
11. Kf2 {[%clk 0:01:37.2]} 11... Bxf4 {[%clk 0:01:17.4]} 12. Qxg4 {[%clk
0:01:32.8]} 12... Nxg4+ {[%clk 0:01:17.4]} 13. Kf3 {[%clk 0:01:32]} 13... Bxc1
{[%clk 0:01:15.9]} 14. Raxc1 {[%clk 0:01:27.8]} 14... Nf6 {[%clk 0:01:10.6]} 15.
c4 {[%clk 0:01:25.8]} 15... c5 {[%clk 0:00:59.6]} 16. d5 {[%clk 0:01:19.1]}
16... Nbd7 {[%clk 0:00:55.3]} 17. Kf4 {[%clk 0:01:15.6]} 17... O-O {[%clk
0:00:45.2]} 18. e5 {[%clk 0:01:13.9]} 18... Nh5+ {[%clk 0:00:42.6]} 19. Kg5
{[%clk 0:01:13.2]} 19... Nxe5 {[%clk 0:00:37.9]} 20. Bxh7+ {[%clk 0:01:08.8]}
20... Kxh7 {[%clk 0:00:37]} 21. Kxh5 {[%clk 0:01:09.1]} 21... f6 {[%clk
0:00:34.6]} 22. Kh4 {[%clk 0:01:03.6]} 22... Rfe8 {[%clk 0:00:31.3]} 23. Kg3
{[%clk 0:01:00.3]} 23... Nd3 {[%clk 0:00:26]} 24. Rc2 {[%clk 0:00:54.8]} 24...
Re3+ {[%clk 0:00:25.6]} 25. Kg4 {[%clk 0:00:50.3]} 25... Rae8 {[%clk 0:00:23.8]}
26. g3 {[%clk 0:00:47.6]} 26... R8e4+ {[%clk 0:00:19.6]} 27. Kh3 {[%clk
0:00:47.2]} 27... Re2 {[%clk 0:00:18.4]} 28. Rxe2 {[%clk 0:00:33.9]} 28... Rxe2
{[%clk 0:00:18.5]} 29. Rd1 {[%clk 0:00:33.9]} 29... Nf2+ {[%clk 0:00:18]} 30.
Kh4 {[%clk 0:00:28.2]} 30... Re4+ {[%clk 0:00:14.1]} 31. g4 {[%clk 0:00:24.4]}
31... Rxg4+ {[%clk 0:00:14]} 32. Kh5 {[%clk 0:00:22.9]} 32... g6# {[%clk
0:00:14.1]} 0-1

[Event "Betsys MČR v online bleskovém šachu 2021"]
[Site "Chess.com"]
[Date "2021.04.17"]
[Round "9"]
[White "jarosymon"]
[Black "Marcus_Aurelius_CZ"]
[Result "0-1"]
[WhiteElo "1727"]
[BlackElo "1428"]
[TimeControl "180+1"]
[EndTime "10:30:10 PDT"]
[Termination "Uživatel Marcus_Aurelius_CZ zvítězil po vzdání soupeře"]

1. e4 {[%clk 0:03:00.9]} 1... e6 {[%clk 0:02:59.7]} 2. Nf3 {[%clk 0:02:59.8]}
2... d5 {[%clk 0:03:00.3]} 3. e5 {[%clk 0:02:57.7]} 3... c5 {[%clk 0:02:59.5]}
4. b4 {[%clk 0:02:57.6]} 4... cxb4 {[%clk 0:02:58.5]} 5. d4 {[%clk 0:02:57.2]}
5... Nc6 {[%clk 0:02:57.5]} 6. a3 {[%clk 0:02:55.2]} 6... Bd7 {[%clk 0:02:53.9]}
7. axb4 {[%clk 0:02:54]} 7... Bxb4+ {[%clk 0:02:52.4]} 8. c3 {[%clk 0:02:53.6]}
8... Ba5 {[%clk 0:02:45.7]} 9. Bd3 {[%clk 0:02:53.3]} 9... Nge7 {[%clk
0:02:43.2]} 10. O-O {[%clk 0:02:51.5]} 10... Ng6 {[%clk 0:02:42.6]} 11. Ba3
{[%clk 0:02:45.6]} 11... Bb6 {[%clk 0:02:36.5]} 12. g3 {[%clk 0:02:41.7]} 12...
Qc8 {[%clk 0:02:31.8]} 13. h4 {[%clk 0:02:38.1]} 13... Bd8 {[%clk 0:02:31]} 14.
Kg2 {[%clk 0:02:22.6]} 14... Be7 {[%clk 0:02:29.3]} 15. Bxe7 {[%clk 0:02:15.1]}
15... Ngxe7 {[%clk 0:02:28.5]} 16. Nbd2 {[%clk 0:02:13.4]} 16... Ng6 {[%clk
0:02:23]} 17. Ng5 {[%clk 0:02:04]} 17... Nce7 {[%clk 0:02:09.8]} 18. Qf3 {[%clk
0:01:57.1]} 18... Nf5 {[%clk 0:01:53.6]} 19. Qg4 {[%clk 0:01:29.1]} 19... h6
{[%clk 0:01:44.2]} 20. Nh3 {[%clk 0:01:19.7]} 20... Nfe7 {[%clk 0:01:41.5]} 21.
h5 {[%clk 0:01:17.2]} 21... Nf8 {[%clk 0:01:38.8]} 22. Qxg7 {[%clk 0:01:15.8]}
22... Rg8 {[%clk 0:01:33.6]} 23. Qxf7+ {[%clk 0:01:15.1]} 23... Kxf7 {[%clk
0:01:28.8]} 24. f4 {[%clk 0:01:09.2]} 24... Nf5 {[%clk 0:01:22.3]} 25. Rf3
{[%clk 0:01:02.4]} 25... Nh4+ {[%clk 0:01:20.6]} 26. Kf2 {[%clk 0:01:00.6]}
26... Nxf3 {[%clk 0:01:20.4]} 27. Nxf3 {[%clk 0:01:00.4]} 27... Bc6 {[%clk
0:01:10.7]} 28. g4 {[%clk 0:00:58.9]} 28... Rg7 {[%clk 0:01:08.2]} 29. g5 {[%clk
0:00:58.5]} 29... hxg5 {[%clk 0:01:04.5]} 30. fxg5 {[%clk 0:00:42.2]} 30... Ke7
{[%clk 0:00:56.7]} 31. h6 {[%clk 0:00:36.1]} 31... Rg8 {[%clk 0:00:55.3]} 32. h7
{[%clk 0:00:34.6]} 32... Nxh7 {[%clk 0:00:49.9]} 33. Bxh7 {[%clk 0:00:32.3]}
33... Rg7 {[%clk 0:00:50.2]} 34. g6 {[%clk 0:00:30.6]} 34... Be8 {[%clk
0:00:49.1]} 35. Nh4 {[%clk 0:00:28.2]} 35... Qxc3 {[%clk 0:00:47.2]} 36. Rd1
{[%clk 0:00:23.9]} 36... Qc2+ {[%clk 0:00:46.4]} 37. Ke1 {[%clk 0:00:23]} 37...
Qe4+ {[%clk 0:00:45.4]} 38. Kf2 {[%clk 0:00:17.5]} 38... Qxh4+ {[%clk
0:00:45.1]} 39. Kg2 {[%clk 0:00:15.8]} 39... Qg4+ {[%clk 0:00:45]} 0-1